bitfinex-derivatives/quotes_ETHF0:USTF0_20241022
["timestamp","ask_amount","ask_price","bid_price","bid_amount"]
[1729638613311,9.12543638,2637.2,2636.9,1.0744]
[1729638613510,1.36,2637.0,2636.9,0.5185]
[1729638613715,9.46688638,2637.0,2636.7,1.36]
[1729638613901,4.5678,2636.8,2636.7,1.36]
[1729638614101,8.54123638,2636.8,2636.7,1.36]
[1729638614409,8.54123638,2636.8,2636.4,0.34152]
[1729638614410,12.67551638,2636.8,2636.4,0.34152]
[1729638614610,6.68153158,2636.5,2636.3,0.88863]
[1729638614807,3.2078,2636.5,2636.4,1.36]
[1729638615606,3.2078,2636.5,2636.3,0.88863]
[1729638615804,3.2078,2636.5,2636.4,1.36]
[1729638616310,6.67694222,2636.5,2636.4,1.36]
[1729638618204,3.2078,2636.5,2636.4,1.36]
[1729638619314,6.17788796,2636.5,2636.4,1.36]
[1729638620103,6.17788796,2636.5,2636.3,0.5471]
[1729638620311,6.17788796,2636.5,2635.5,0.85408]
[1729638620312,8.46441796,2636.4,2636.0,0.86886]
[1729638620608,7.53788796,2636.2,2636.1,1.36]
[1729638621005,6.17788796,2636.2,2636.1,1.36]
[1729638621202,7.53788796,2636.2,2636.1,1.36]
[1729638621404,7.53788796,2636.2,2636.1,1.70156]
[1729638621608,6.17788796,2636.2,2636.1,1.70156]
[1729638622309,3.2078,2636.2,2636.1,1.70156]
[1729638623016,3.2078,2636.2,2636.1,1.36]
[1729638623312,3.2078,2636.2,2636.1,1.70156]
[1729638629917,3.2078,2636.5,2636.1,2.72]
[1729638630121,3.2078,2636.5,2636.4,1.70152]
[1729638635816,1.36,2636.6,2636.4,1.70152]
[1729638636017,1.36,2636.6,2636.5,1.36]
[1729638636217,4.5678,2636.6,2636.5,1.36]
[1729638637926,4.5678,2636.6,2636.5,1.70151]
[1729638640915,7.53788796,2636.6,2636.5,1.70151]
[1729638642033,4.33008796,2636.6,2636.5,1.70151]
[1729638642214,7.53788796,2636.6,2636.5,1.70151]
[1729638644415,4.33008796,2636.6,2636.5,1.70151]
[1729638644619,7.53788796,2636.6,2636.5,1.70151]
[1729638645527,4.33008796,2636.6,2636.5,1.70151]
[1729638645726,7.53788796,2636.6,2636.5,1.70151]
[1729638646322,4.33008796,2636.6,2636.5,1.70151]
[1729638646522,4.5678,2636.6,2636.5,1.70151]
[1729638646727,7.53653062,2636.6,2636.5,1.70151]
[1729638647427,4.5678,2636.6,2636.5,1.70151]
[1729638648626,3.2078,2636.6,2636.5,1.70151]
[1729638648924,6.17733818,2636.6,2636.5,1.70151]
[1729638649323,3.2078,2636.6,2636.5,1.70151]
[1729638650727,3.2078,2636.6,2636.5,0.34151]
[1729638651123,8.37844222,2636.6,2636.4,0.34152]
[1729638651320,1.36,2636.5,2636.4,0.34152]
[1729638651819,8.03694222,2636.6,2636.5,0.34151]
[1729638652219,4.5678,2636.6,2636.5,0.34151]
[1729638653624,3.2078,2636.6,2636.5,1.70151]
[1729638653826,6.67589142,2636.6,2636.5,1.70151]
[1729638654324,3.2078,2636.6,2636.5,1.70151]
[1729638655030,6.67680457,2636.6,2636.5,1.70151]
[1729638655220,6.67680457,2636.6,2636.5,0.34151]
[1729638655420,3.2078,2636.6,2636.5,0.34151]
[1729638656129,3.2078,2636.6,2636.5,1.70151]
[1729638656320,7.18123638,2636.6,2636.5,1.70151]
[1729638657518,8.54123638,2636.6,2636.4,1.36]
[1729638657930,4.5678,2636.6,2636.5,0.34151]
[1729638658122,9.03956758,2636.6,2636.5,0.34151]
[1729638659322,9.03956758,2636.6,2636.2,1.0453]
[1729638659323,9.38106758,2636.6,2636.2,1.0453]
[1729638659533,9.38106758,2636.6,2636.4,0.34152]
[1729638659534,6.87646758,2636.5,2636.4,0.34152]
[1729638659828,5.6125,2636.5,2636.4,0.34152]
[1729638660732,4.2525,2636.5,2636.4,0.34152]
[1729638662334,4.2525,2636.5,2636.3,0.34153]
[1729638662537,4.46914003,2636.4,2636.3,0.34153]
[1729638664228,4.46914003,2636.4,2636.3,1.70153]
[1729638665834,7.67694003,2636.4,2636.3,1.70153]
[1729638667939,8.22684003,2636.4,2636.3,1.36]
[1729638668933,7.67694003,2636.4,2636.3,1.70154]
[1729638669431,7.67694003,2636.4,2636.3,1.36]
[1729638669735,7.67694003,2636.4,2636.3,1.70154]
[1729638670440,4.46914003,2636.4,2636.3,1.70154]
[1729638670635,7.67694003,2636.4,2636.3,1.70154]
[1729638671232,7.67694003,2636.4,2636.3,1.36]
[1729638671433,7.67694003,2636.4,2636.2,2.74684]
[1729638671635,3.97440432,2636.3,2636.2,2.74684]
[1729638671837,7.67694003,2636.4,2636.2,2.4053]
[1729638672038,7.67694003,2636.4,2636.3,0.34154]
[1729638672238,7.67694003,2636.4,2636.3,1.70154]
[1729638673434,9.03694003,2636.4,2636.2,1.0453]
[1729638673644,6.33277843,2636.3,2636.2,1.0453]
[1729638673839,6.82964192,2636.3,2636.2,1.0453]
[1729638674040,6.82964192,2636.3,2636.2,1.38685]
[1729638674347,6.82964192,2636.3,2636.2,1.0453]
[1729638674546,6.82964192,2636.3,2636.2,1.38685]
[1729638676243,10.03744192,2636.3,2636.2,1.38685]
[1729638679852,6.82964192,2636.3,2636.2,1.38685]
[1729638680050,10.03744192,2636.3,2636.2,1.38685]
[1729638686157,5.0686,2636.3,2636.2,1.38685]
[1729638688057,8.8622,2636.3,2636.2,1.0453]
[1729638688359,0.34155,2636.2,2636.1,0.5062]
[1729638688561,1.36,2636.2,2636.1,0.5062]
[1729638688754,1.36,2636.2,2636.1,0.84776]
[1729638689259,1.70155,2636.2,2636.1,0.5062]
[1729638689962,1.36,2636.2,2636.1,0.5062]
[1729638690161,1.36,2636.2,2636.1,0.84776]
[1729638690370,1.36,2636.2,2636.1,0.5062]
[1729638690556,1.70155,2636.2,2636.1,0.5062]
[1729638691659,1.36,2636.2,2636.1,0.5062]
[1729638692066,1.36,2636.2,2636.1,1.8662]
[1729638693366,4.5678,2636.2,2636.1,1.8662]
[1729638694169,9.03744632,2636.2,2636.1,1.8662]
[1729638694571,4.5678,2636.2,2636.1,1.8662]
[1729638695857,4.5678,2636.2,2636.1,2.20776]
[1729638696060,4.5678,2636.2,2636.1,1.8662]
[1729638696470,4.5678,2636.2,2636.1,2.20776]
[1729638697573,4.5678,2636.2,2636.1,1.8662]
[1729638698470,4.5678,2636.2,2636.1,0.5062]
[1729638698674,4.5678,2636.2,2636.1,0.84776]
[1729638699469,3.2078,2636.2,2636.1,2.20776]
[1729638699669,7.67734902,2636.2,2636.1,6.00136]
[1729638699867,4.18111598,2636.2,2636.1,6.00136]
[1729638700178,7.18113589,2636.4,2636.3,0.34154]
[1729638700366,3.2078,2636.4,2636.3,5.49434]
[1729638701078,7.18113589,2636.4,2636.3,5.49434]
[1729638701379,3.2078,2636.4,2636.3,5.49434]
[1729638704473,3.97333589,2636.5,2636.3,5.1528]
[1729638704679,3.97333589,2636.5,2636.4,1.70152]
[1729638704874,3.97333589,2636.5,2636.4,6.03092]
[1729638710682,3.97333589,2636.5,2636.4,2.23812]
[1729638711977,3.97333589,2636.5,2636.4,1.70152]
[1729638716478,5.87393589,2636.6,2636.4,1.70152]
[1729638716684,5.87393589,2636.6,2636.4,1.36]
[1729638716890,5.87393589,2636.6,2636.5,0.34151]
[1729638717080,5.87393589,2636.6,2636.4,1.36]
[1729638717386,5.87393589,2636.6,2636.2,1.70154]
[1729638717387,1.36,2636.5,2636.2,1.70154]
[1729638717588,3.47460927,2636.3,2636.2,1.70154]
[1729638717783,6.40148202,2636.4,2636.2,1.70154]
[1729638717985,0.551,2636.3,2636.2,1.70154]
[1729638719880,4.52198202,2636.3,2636.2,1.70154]
[1729638721492,0.551,2636.3,2636.2,1.70154]
[1729638721689,4.02553039,2636.3,2636.2,1.70154]
[1729638722190,0.551,2636.3,2636.2,1.70154]
[1729638725990,4.0258461,2636.3,2636.2,1.70154]
[1729638727289,0.551,2636.3,2636.2,1.70154]
[1729638727490,4.5453461,2636.4,2636.3,0.34154]
[1729638727795,4.5453461,2636.4,2636.3,1.70154]
[1729638731496,1.0705,2636.4,2636.3,1.70154]
[1729638734793,5.04148202,2636.4,2636.3,1.70154]
[1729638739505,1.0705,2636.4,2636.3,1.70154]
[1729638739798,5.04347621,2636.4,2636.3,1.70154]
[1729638740605,5.04492882,2636.4,2636.3,1.70154]
[1729638740796,1.0705,2636.4,2636.3,1.70154]
[1729638743302,5.54004902,2636.4,2636.3,1.70154]
[1729638744096,5.54004902,2636.4,2636.3,6.85434]
[1729638744301,1.0705,2636.4,2636.3,1.70154]
[1729638744502,5.04847964,2636.4,2636.3,1.70154]
[1729638744900,1.0705,2636.4,2636.3,1.70154]
[1729638755007,5.04957195,2636.4,2636.3,5.49434]
[1729638755210,1.0705,2636.4,2636.3,5.49434]
[1729638759110,1.0705,2636.4,2636.3,1.70154]
[1729638760114,1.0705,2636.4,2636.3,6.85434]
[1729638761111,1.0705,2636.4,2636.3,5.49434]
[1729638762218,1.0705,2636.4,2636.3,1.70154]
[1729638763526,4.5514311,2636.4,2636.3,1.70154]
[1729638763718,1.0705,2636.4,2636.3,1.70154]
[1729638763915,4.55142767,2636.4,2636.3,1.70154]
[1729638764213,1.0705,2636.4,2636.3,1.70154]
[1729638764821,1.0705,2636.4,2636.3,3.06154]
[1729638765017,4.55150889,2636.4,2636.3,3.06154]
[1729638765723,3.48100889,2636.4,2636.3,3.06154]
[1729638766318,3.48100889,2636.5,2636.4,0.34152]
[1729638766531,3.48100889,2636.5,2636.4,2.20832]
[1729638768023,3.48100889,2636.5,2636.4,1.70152]
[1729638768925,4.53067195,2636.6,2636.5,0.34151]
[1729638769124,4.53067195,2636.6,2636.5,1.70151]
[1729638777042,0.5516,2636.6,2636.5,1.70151]
[1729638777237,4.53067195,2636.6,2636.5,1.70151]
[1729638777439,0.5516,2636.6,2636.5,1.70151]
[1729638778339,4.53067195,2636.6,2636.5,1.70151]
[1729638779429,0.5516,2636.6,2636.5,1.70151]
[1729638780444,4.53067195,2636.6,2636.5,1.70151]
[1729638783139,0.5516,2636.6,2636.5,1.70151]
[1729638783538,4.53067195,2636.6,2636.5,1.70151]
[1729638798547,0.5516,2636.6,2636.5,1.70151]
[1729638800845,5.02114902,2636.6,2636.5,1.70151]
[1729638805752,5.02114902,2636.6,2636.2,3.2078]
[1729638805953,9.80907766,2636.5,2636.2,1.70154]
[1729638806148,9.80907766,2636.5,2636.2,0.34154]
[1729638806149,4.46954902,2636.3,2636.2,0.34154]
[1729638806349,0.973,2636.4,2636.2,1.36]
[1729638806660,4.96935753,2636.3,2636.2,0.34155]
[1729638807056,4.96935753,2636.3,2636.2,1.70155]
[1729638807354,0.4949,2636.3,2636.2,1.70155]
[1729638809664,4.47048991,2636.3,2636.2,1.70155]
[1729638809862,4.47048991,2636.3,2636.2,1.36]
[1729638810160,5.83048991,2636.3,2636.2,1.36]
[1729638810458,0.34155,2636.2,2636.1,1.36]
[1729638810656,4.31595631,2636.2,2636.1,1.36]
[1729638810857,3.97440631,2636.2,2636.1,1.36]
[1729638811250,8.51869753,2636.3,2636.1,1.36]
[1729638811458,9.53715753,2636.3,2635.7,0.923]
[1729638811654,3.47676191,2636.0,2635.9,0.34159]
[1729638811959,3.47676191,2636.0,2635.9,1.70159]
[1729638812362,3.94666191,2636.0,2635.9,1.70159]
[1729638812753,3.94666191,2636.0,2635.9,1.36]
[1729638813060,0.4699,2636.0,2635.9,1.36]
[1729638813256,4.44334219,2636.0,2635.9,1.36]
[1729638813456,0.4699,2636.0,2635.9,1.36]
[1729638813655,2.7834,2636.0,2635.6,3.2078]
[1729638813860,3.47496859,2635.9,2635.8,1.36]
[1729638814164,7.09842219,2636.0,2635.8,1.36]
[1729638814165,10.30622219,2636.0,2635.8,1.36]
[1729638814560,9.96464219,2636.0,2635.8,1.36]
[1729638814959,3.97344219,2635.9,2635.8,1.36]
[1729638815459,9.96464219,2636.0,2635.8,1.36]
[1729638816358,9.96464219,2636.0,2635.9,1.36]
[1729638816759,10.30622219,2636.0,2635.6,0.34162]
[1729638816959,10.30622219,2636.0,2635.6,0.34163]
[1729638816960,3.47182525,2635.9,2635.6,0.34163]
[1729638817162,3.47182525,2635.9,2635.8,0.3416]
[1729638818253,4.83182525,2635.9,2635.8,1.36]
[1729638818464,3.47182525,2635.9,2635.8,1.36]
[1729638819455,9.46302525,2636.0,2635.8,1.36]
[1729638819660,5.9912,2636.0,2635.9,1.36]
[1729638821466,9.46002612,2636.0,2635.9,1.36]
[1729638821669,8.10002612,2636.0,2635.9,1.36]
[1729638821871,9.46002612,2636.0,2635.9,1.36]
[1729638825571,6.25222612,2636.0,2635.9,1.36]
[1729638827072,4.89222612,2636.0,2635.9,1.36]
[1729638827873,1.4234,2636.0,2635.9,1.36]
[1729638828473,2.7834,2636.0,2635.9,1.36]
[1729638828878,1.4234,2636.0,2635.9,1.36]
[1729638830381,2.7834,2636.0,2635.9,1.36]
[1729638830582,2.7834,2636.0,2635.9,1.70159]
[1729638831183,5.9912,2636.0,2635.9,1.36]
[1729638832780,5.9912,2636.0,2635.9,1.70159]
[1729638833281,5.9912,2636.0,2635.9,1.36]
[1729638835276,5.9912,2636.0,2635.9,1.70159]
[1729638835580,5.9912,2636.0,2635.9,1.36]
[1729638835979,2.7834,2636.0,2635.9,1.36]
[1729638837378,6.25222612,2636.0,2635.9,1.36]
[1729638837583,6.25222612,2636.0,2635.9,1.70159]
[1729638838384,6.25222612,2636.0,2635.9,1.36]
[1729638839578,6.25222612,2636.0,2635.9,1.70159]
[1729638840387,6.25222612,2636.0,2635.9,1.36]
[1729638841790,6.59380612,2636.0,2635.9,1.36]
[1729638841983,2.7834,2636.0,2635.9,1.36]
[1729638842985,3.12498,2636.0,2635.9,1.36]
[1729638843686,2.7834,2636.0,2635.9,1.36]
[1729638843892,3.12498,2636.0,2635.9,1.36]
[1729638844384,2.7834,2636.0,2635.9,1.36]
[1729638844690,3.12498,2636.0,2635.9,1.36]
[1729638845489,0.34159,2635.9,2635.7,1.70161]
[1729638845685,4.83018614,2635.9,2635.7,1.70161]
[1729638845990,3.47018614,2635.8,2635.7,1.70161]
[1729638847284,3.47018614,2635.8,2635.5,0.4957]
[1729638847490,0.5254,2635.7,2635.5,0.4957]
[1729638847791,3.99558614,2635.7,2635.6,1.70163]
[1729638848275,0.5254,2635.7,2635.6,1.70163]
[1729638848482,3.99558614,2635.7,2635.6,1.70163]
[1729638849781,3.47018614,2635.7,2635.6,1.70163]
[1729638849985,3.47018614,2635.7,2635.6,2.18423]
[1729638850291,3.47018614,2635.8,2635.7,0.34161]
[1729638850487,7.66364219,2635.9,2635.8,0.3416]
[1729638850799,7.66364219,2635.9,2635.8,1.7016]
[1729638851683,3.6902,2635.9,2635.8,1.7016]
[1729638853080,5.0502,2635.9,2635.8,1.36]
[1729638853285,5.0502,2635.9,2635.7,1.70161]
[1729638853485,3.97252441,2635.8,2635.7,1.70161]
[1729638855093,4.95685753,2635.9,2635.7,1.70161]
[1729638855592,8.16465753,2635.9,2635.7,1.70161]
[1729638857193,4.95685753,2635.9,2635.7,1.70161]
[1729638857593,4.47445753,2635.8,2635.7,1.70161]
[1729638858096,4.47445753,2635.8,2635.7,1.36]
[1729638858795,4.47445753,2635.8,2635.6,1.70162]
[1729638859690,4.47445753,2635.7,2635.6,1.70162]
[1729638860595,4.47445753,2635.7,2635.6,1.36]
[1729638861497,4.81605753,2635.8,2635.6,1.36]
[1729638861706,4.47445753,2635.8,2635.6,1.36]
[1729638861999,4.47445753,2635.8,2635.6,1.70163]
[1729638864101,4.47445753,2635.8,2635.6,1.36]
[1729638864398,4.47445753,2635.8,2635.6,1.70163]
[1729638864892,0.4996,2635.7,2635.6,1.70163]
[1729638866100,0.4996,2635.7,2635.6,1.36]
[1729638866998,4.47568828,2635.7,2635.6,1.70163]
[1729638867495,4.47568828,2635.7,2635.6,1.36]
[1729638867889,0.4996,2635.7,2635.6,1.36]
[1729638869097,0.4996,2635.7,2635.6,1.70163]
[1729638869699,0.4996,2635.7,2635.5,0.34164]
[1729638869896,0.4996,2635.7,2635.5,1.36]
[1729638869897,6.33874031,2635.6,2635.5,1.36]
[1729638870100,6.33874031,2635.6,2635.1,1.0155]
[1729638870291,1.36,2635.5,2635.2,1.36]
[1729638870494,1.36,2635.5,2635.4,1.70165]
[1729638870694,5.33490712,2635.5,2635.4,1.36]
[1729638870894,1.36,2635.5,2635.4,1.36]
[1729638871299,1.36,2635.5,2635.4,1.70165]
[1729638871600,1.36,2635.5,2635.4,1.36]
[1729638872299,5.33428377,2635.5,2635.4,1.70165]
[1729638872498,3.97428377,2635.5,2635.4,1.70165]
[1729638873705,3.97428377,2635.5,2635.4,1.36]
[1729638873997,3.97428377,2635.5,2635.4,1.70165]
[1729638877098,3.97428377,2635.5,2635.4,1.36]
[1729638877293,5.33428377,2635.5,2635.4,1.70165]
[1729638878012,5.33428377,2635.5,2635.4,1.36]
[1729638878202,5.33428377,2635.5,2635.4,1.70165]
[1729638878603,3.97428377,2635.5,2635.4,1.70165]
[1729638879700,3.97428377,2635.5,2635.4,1.36]
[1729638879899,5.33428377,2635.5,2635.3,1.36]
[1729638880102,5.33428377,2635.5,2635.4,0.34165]
[1729638881509,5.33428377,2635.5,2635.3,0.34166]
[1729638881704,1.36,2635.4,2635.3,1.36]
[1729638881909,3.97428377,2635.5,2635.3,1.36]
[1729638882213,6.33708377,2635.6,2635.4,1.70165]
[1729638882414,1.36,2635.5,2635.1,1.48720979]
[1729638882606,1.36,2635.2,2635.1,0.34169]
[1729638882822,3.2078,2635.3,2635.1,1.70169]
[1729638883012,4.97088377,2635.3,2635.2,1.70168]
[1729638883200,0.5029,2635.3,2635.2,1.70168]
[1729638883401,1.36,2635.4,2635.2,1.36]
[1729638883608,1.36,2635.4,2635.3,1.70167]
[1729638884709,5.33428377,2635.4,2635.3,0.34167]
[1729638884907,1.36,2635.4,2635.3,0.34167]
[1729638889011,5.1544,2635.4,2635.2,0.34167]
[1729638889210,1.36,2635.3,2635.0,0.4818]
[1729638889413,1.36,2635.1,2635.0,2.1835]
[1729638889606,0.9835,2635.2,2635.1,0.34169]
[1729638889607,1.4644,2635.2,2635.1,0.34169]
[1729638889807,2.8244,2635.2,2635.1,0.34169]
[1729638893115,2.8244,2635.2,2635.1,1.70169]
[1729638895017,2.8244,2635.2,2635.1,0.34169]
[1729638896010,2.8244,2635.2,2634.3,40.8]
[1729638896214,1.36,2635.0,2634.9,1.70172]
[1729638897827,2.8244,2635.2,2634.9,1.36]
[1729638898118,2.8244,2635.2,2635.1,1.70169]
[1729638898624,2.8244,2635.2,2635.0,1.36]
[1729638898923,2.8244,2635.2,2635.0,1.70169]
[1729638898924,1.36,2635.1,2635.0,1.70169]
[1729638899318,1.36,2635.1,2635.0,0.34169]
[1729638900225,1.36,2635.1,2634.8,1.8643]
[1729638900428,1.4644,2635.2,2635.0,0.3417]
[1729638900726,1.36,2635.1,2635.0,0.3417]
[1729638900914,1.36,2635.1,2634.8,1.8643]
[1729638901121,1.36,2635.0,2634.9,0.34171]
[1729638903225,1.36,2635.0,2634.8,0.5043]
[1729638903418,0.5101,2634.9,2634.8,0.84602]
[1729638903618,0.9924,2634.9,2634.8,0.84602]
[1729638904723,0.9924,2634.9,2634.8,0.34172]
[1729638905524,5.5602,2634.9,2634.2,3.2078]
[1729638905824,1.36,2634.5,2634.4,0.84038]
[1729638906018,1.36,2634.6,2634.5,0.34177]
[1729638906417,1.36,2634.6,2634.5,1.70177]
[1729638907622,1.36,2634.6,2634.5,0.34177]
[1729638913327,1.36,2634.6,2634.2,2.7723]
[1729638913531,1.36,2634.4,2634.3,0.3418]
[1729638914034,1.8498,2634.4,2634.3,0.3418]
[1729638915129,1.8498,2634.4,2634.3,1.7018]
[1729638923823,0.4898,2634.4,2634.3,1.7018]
[1729638924132,1.0048,2634.5,2634.4,0.34178]
[1729638924334,1.0048,2634.5,2634.4,1.70178]
[1729638924836,2.3648,2634.5,2634.4,1.70178]
[1729638926132,2.3648,2634.5,2634.4,0.34178]
[1729638932238,2.3648,2634.5,2634.4,1.70178]
[1729638932443,3.7087,2634.7,2634.6,0.34176]
[1729638932742,0.9843,2634.9,2634.8,0.34173]
[1729638932937,2.3443,2634.9,2634.8,0.34173]
[1729638934139,2.3443,2634.9,2634.8,1.70173]
[1729638934140,0.4833,2634.9,2634.8,1.70173]
[1729638941159,0.5106,2635.0,2634.8,1.36]
[1729638941357,1.0194,2635.2,2635.1,0.34169]
[1729638941553,2.3794,2635.2,2634.9,0.34172]
[1729638941762,1.0194,2635.2,2635.0,1.36]
[1729638942460,1.36,2635.1,2635.0,1.36]
[1729638943661,1.36,2635.1,2635.0,1.7017]
[1729638943970,1.36,2635.1,2635.0,1.36]
[1729638944565,1.36,2635.1,2635.0,1.7017]
[1729638945566,1.36,2635.1,2635.0,1.36]
[1729638945769,1.36,2635.1,2635.0,1.7017]
[1729638947860,1.0194,2635.2,2635.0,1.36]
[1729638948162,1.0194,2635.2,2635.1,1.70169]
[1729638949075,1.70155,2636.2,2635.7,0.3416]
[1729638949272,1.36,2635.8,2635.4,0.916]
[1729638949472,1.0402,2635.9,2635.3,1.36]
[1729638949473,1.36,2635.5,2635.3,1.36]
[1729638949675,1.0563,2635.4,2635.3,1.70167]
[1729638949977,1.5604,2635.4,2635.3,1.70167]
[1729638951872,2.9204,2635.4,2635.2,0.34167]
[1729638952069,2.9204,2635.4,2635.3,1.70167]
[1729638955079,1.5604,2635.4,2635.3,1.70167]
[1729638957981,3.2078,2635.8,2635.3,9.7222]
[1729638958171,1.5115,2636.2,2635.9,0.34158]
[1729638958372,1.5115,2636.2,2636.0,1.36]
[1729638958373,2.8715,2636.2,2636.0,1.36]
[1729638958773,2.8715,2636.2,2636.0,1.70157]
[1729638958973,2.8715,2636.2,2636.0,1.36]
[1729638959266,2.8715,2636.2,2636.1,0.34156]
[1729638959667,6.6651,2636.2,2636.1,0.34156]
[1729638960069,1.5115,2636.2,2636.1,1.70156]
[1729638964984,2.8715,2636.2,2636.1,0.34156]
[1729638965186,6.6651,2636.2,2636.0,0.34156]
[1729638965480,8.70296,2636.1,2635.7,1.36]
[1729638965682,3.2078,2636.1,2636.0,0.34157]
[1729638966075,7.0014,2636.1,2636.0,0.34157]
[1729638966276,1.36,2636.0,2635.8,1.36]
[1729638966476,1.36,2636.0,2635.9,0.34159]
[1729638966686,5.1536,2636.0,2635.9,0.34159]
[1729638971781,5.1536,2636.0,2635.9,1.70159]
[1729638972987,5.1536,2636.0,2635.9,0.34159]
[1729638980687,5.1536,2636.0,2635.8,1.36]
[1729638980989,7.52365377,2636.1,2635.3,0.5062]
[1729638980990,5.1536,2635.9,2635.3,0.5062]
[1729638981186,6.83985753,2636.2,2635.4,1.70164]
[1729638981187,1.36,2635.5,2635.4,1.70164]
[1729638981378,1.36,2635.5,2635.4,1.70165]
[1729638983991,7.52370377,2635.7,2635.4,1.36]
[1729638983992,1.36,2635.6,2635.4,1.36]
[1729638984192,1.36,2635.6,2635.5,1.70164]
[1729638984384,5.33428377,2635.6,2635.5,1.70164]
[1729638985279,5.33428377,2635.6,2635.5,0.34164]
[1729638986490,1.36,2635.6,2635.5,0.34164]
[1729638988595,5.33428377,2635.6,2635.5,0.34164]
[1729638989088,1.36,2635.6,2635.5,0.34164]
[1729638989295,5.33428377,2635.6,2635.5,0.34164]
[1729638992383,3.97428377,2635.6,2635.5,1.70164]
[1729638992589,3.97428377,2635.7,2635.6,0.34163]
[1729638992790,1.36,2635.7,2635.6,0.34163]
[1729638992996,5.33428377,2635.7,2635.6,0.34163]
[1729638993193,1.36,2635.7,2635.6,0.34163]
[1729638993392,5.33428377,2635.7,2635.6,0.34163]
[1729638996796,5.33428377,2635.7,2635.6,1.70163]
[1729638997695,5.33428377,2635.7,2635.6,0.34163]
[1729638999384,5.67589377,2635.7,2635.6,0.34163]
[1729638999589,5.33428377,2635.7,2635.2,4.06199]
[1729638999894,5.67591377,2635.6,2635.5,0.34163]
[1729639000398,5.67592377,2635.6,2635.5,0.34164]
[1729639000697,1.70164,2635.6,2635.5,0.34164]
[1729639000895,1.70164,2635.6,2635.4,0.34165]
[1729639000896,0.34164,2635.5,2635.4,0.34165]
[1729639001196,0.34164,2635.5,2635.0,2.35236]
[1729639001197,0.34167,2635.3,2635.2,0.34167]
[1729639001387,1.70167,2635.3,2635.2,0.34167]
[1729639001593,5.1544,2635.3,2634.7,1.36]
[1729639001789,1.36,2634.8,2634.7,1.70174]
[1729639002395,1.36,2634.8,2634.7,0.34174]
[1729639002900,1.36,2634.8,2634.6,3.54955]
[1729639003200,1.36,2634.7,2634.6,4.90955]
[1729639003389,1.36,2634.8,2634.6,4.90955]
[1729639003595,1.36,2634.7,2634.6,4.90955]
[1729639006497,1.36,2634.8,2634.6,4.90955]
[1729639006694,1.36,2634.8,2634.7,1.36]
[1729639007992,1.36,2634.8,2634.7,1.70174]
[1729639011395,1.70172,2634.9,2634.7,1.70174]
[1729639011606,1.36,2634.9,2634.8,1.36]
[1729639011996,5.1552,2634.9,2634.8,1.36]
[1729639012394,0.4947,2635.0,2634.9,0.34172]
[1729639012592,3.7019,2635.2,2635.1,0.34169]
[1729639012793,3.7019,2635.2,2635.1,1.70169]
[1729639013394,5.0619,2635.2,2635.1,1.70169]
[1729639014497,5.0619,2635.2,2635.1,0.34169]
[1729639014498,5.40358,2635.2,2635.1,0.34169]
[1729639018205,5.0619,2635.2,2635.1,0.34169]
[1729639018409,5.40358,2635.2,2635.1,0.34169]
[1729639022612,9.37690243,2635.2,2635.1,0.34169]
[1729639022814,5.40358,2635.2,2635.1,0.34169]
[1729639023315,9.37690243,2635.2,2635.1,0.34169]
[1729639023514,9.03522243,2635.2,2634.9,0.5296]
[1729639023707,1.36,2635.0,2634.9,0.87132]
[1729639024415,1.36,2635.0,2634.9,0.34172]
[1729639026311,1.36,2635.1,2635.0,0.3417]
[1729639026511,1.70169,2635.1,2635.0,0.3417]
[1729639027916,1.36,2635.1,2635.0,0.3417]
[1729639029423,9.37690243,2635.2,2635.0,1.36]
[1729639029619,9.37690243,2635.2,2635.1,0.34169]
[1729639029820,9.37690243,2635.2,2635.1,0.85059]
[1729639030123,9.03522243,2635.2,2635.1,0.85059]
[1729639030311,7.18112243,2635.2,2635.1,2.21059]
[1729639030512,3.2078,2635.2,2635.1,2.21059]
[1729639031421,3.97332243,2635.4,2635.1,5.6641]
[1729639031619,8.20855753,2635.5,2635.4,0.34165]
[1729639031620,8.04906243,2635.5,2635.4,0.34165]
[1729639031924,5.43574,2635.5,2635.4,0.34165]
[1729639032415,5.0941,2635.5,2635.4,0.34165]
[1729639032618,5.43574,2635.5,2635.4,0.34165]
[1729639033317,9.40906243,2635.5,2635.4,0.34165]
[1729639034318,9.06742243,2635.5,2635.4,0.34165]
[1729639035020,9.40906243,2635.5,2635.4,0.34165]
[1729639038330,5.43574,2635.5,2635.4,0.34165]
[1729639039824,13.70459753,2635.5,2635.4,0.34165]
[1729639044225,9.91019753,2635.5,2635.4,0.34165]
[1729639044822,6.70239753,2635.5,2635.4,0.34165]
[1729639045020,9.91019753,2635.5,2635.4,0.34165]
[1729639047322,6.70239753,2635.5,2635.4,0.34165]
[1729639047537,9.91019753,2635.5,2635.4,0.34165]
[1729639048228,6.70239753,2635.5,2635.4,0.34165]
[1729639049233,9.91019753,2635.5,2635.4,0.34165]
[1729639049929,9.90819712,2635.5,2635.4,0.34165]
[1729639054129,5.43574,2635.5,2635.4,0.34165]
[1729639055034,10.40458192,2635.5,2635.4,0.34165]
[1729639055432,10.06294192,2635.5,2635.1,0.5089]
[1729639055625,8.54418898,2635.2,2634.7,0.5185]
[1729639055825,1.70173,2634.8,2634.7,0.34174]
[1729639056130,1.36,2634.8,2634.7,0.34174]
[1729639056434,3.97431969,2634.8,2634.7,1.36]
[1729639056635,3.97431969,2634.8,2634.7,1.70174]